Workbook

Sheet DASHBOARD
H5: Ingresos | I5: Egresos | J5: =IF(J6<0,"Pérdida","Ganancia") -> Ganancia | M5: Activos | N5: Pasivos | O5: Capital neto
H6: =+ENERO!$C$35+FEBRERO!C35+MARZO!C35+ABRIL!C35+MAYO!C35+JUNIO!C35+JULIO!C35+AGOSTO!C35+SEPTIEMBRE!C35+OCTUBRE!C35+NOVIEMBRE!C35+DICIEMBRE!C35 -> 380000 | I6: =+ENERO!$F$35+FEBRERO!F35+MARZO!F35+ABRIL!F35+MAYO!F35+JUNIO!F35+JULIO!F35+AGOSTO!F35+SEPTIEMBRE!F35+OCTUBRE!F35+NOVIEMBRE!F35+DICIEMBRE!F35 -> 320000 | J6: =+H6-I6 -> 60000 | M6: =+ENERO!$C$63+FEBRERO!C63+MARZO!C63+ABRIL!C63+MAYO!C63+JUNIO!C63+JULIO!C63+AGOSTO!C63+SEPTIEMBRE!C63+OCTUBRE!C63+NOVIEMBRE!C63+DICIEMBRE!C63 -> 70000 | N6: =+ENERO!$F$63+FEBRERO!F63+MARZO!F63+ABRIL!F63+MAYO!F63+JUNIO!F63+JULIO!F63+AGOSTO!F63+SEPTIEMBRE!F63+OCTUBRE!F63+NOVIEMBRE!F63+DICIEMBRE!F63 -> 130000 | O6: =+M6-N6+AHORRO!F6 -> -20000
J20: Progreso
I21: Ahorro | J21: =+AHORRO!G6 -> 0.04 | N21: Meta
M25: Saldo acumulado en caja | O25: =+ENERO!I12-ENERO!C63-ENERO!I52+ENERO!F63+FEBRERO!I12-FEBRERO!C63-FEBRERO!I52+FEBRERO!F63+MARZO!I12-MARZO!C63-MARZO!I52+MARZO!F63+ABRIL!I12-ABRIL!C63-ABRIL!I52+ABRIL!F63+MAYO!I12-MAYO!C63-MAYO!I52+MAYO!F63+JUNIO!I12-JUNIO!C63-JUNIO!I52+JUNIO!F63+JULIO!I12-JULIO!C63-JULIO!I52+JULIO!F63+AGOSTO!I12-AGOSTO!C63-AGOSTO!I52+AGOSTO!F63+SEPTIEMBRE!I12-SEPTIEMBRE!C63-SEPTIEMBRE!I52+SEPTIEMBRE!F63+OCTUBRE!I12-OCTUBRE!C63-OCTUBRE!I52+OCTUBRE!F63+NOVIEMBRE!I12-NOVIEMBRE!C63-NOVIEMBRE!I52+NOVIEMBRE!F63+DICIEMBRE!I12-DICIEMBRE!C63-DICIEMBRE!I52+DICIEMBRE!F63 -> 80000
H26: Estatus:
H27: =IF(H34<=6,"Bajo",IF(H34<=11,"Medio","Óptimo")) -> Óptimo | M27: Liquidez | O27: =+M6/N6 -> 0.5384615385
H29: Avance: | I29: =COUNTIF('CHECKLIST '!G12:G26,TRUE)/COUNTA('CHECKLIST '!G12:G26) -> 0.8 | M29: Endeudamiento | O29: =+N6/M6 -> 1.857142857
H30: Pendiente: | I30: =100%-I29 -> 0.2
H34: =COUNTIF('CHECKLIST '!G12:G26,"Verdadero") -> 12
H38: =COUNTIF('CHECKLIST '!G12:G26,TRUE)/COUNTA('CHECKLIST '!G12:G26) -> 0.8 | I38: =$H$38 -> 0.8
H39: =100%-H38 -> 0.2

Sheet INSTRUCCIONES
C3: 📋 Instrucciones para usar tu Dashboard Financiero-Fiscal
D6: Este dashboard está diseñado para que lleves un control mensual simple y claro del dinero de tu negocio o finanzas personales. Te servirá como una mini contabilidad, para saber: cuánto ganas, cuánto gastas, en qué inviertes, cuánto debes y cómo avanza tu situación mes a mes.
D12: • En las celdas de color gris, registra tus ingresos y gastos para determinar tu flujo de efectivo mensual. • En la sección de activos y pasivos, coloca el valor de los bienes o deudas que adquieras como resultado del manejo de tu flujo de efectivo. - Si tu flujo es positivo: indica en qué operaciones inviertes o gastas. - Si tu flujo es negativo: anota de dónde proviene el financiamiento (préstamos, créditos, etc.).
D18: El objetivo principal es que inviertas que incrementes tus activos, no que acumules deudas sino son en beneficio de tu negocio o persona.
D20: 1️⃣ Registro de ingresos y egresos (Flujo de efectivo mensual) • Ve a la hoja del mes correspondiente. • Ingresos: anota todo el dinero que entra a tu negocio (ventas, servicios, comisiones, ingresos extraordinarios). • Egresos: anota todo el dinero que sale (costos, gastos fijos, pagos de impuestos, nómina, compras, servicios, etc.). • La plantilla calculará tu saldo neto del mes. 💡 Tip: Anota cada ingreso o gasto lo más específico posible, en cada mes puedes encontrar ejemplos de como registrar tu información. Adáptala a tus necesidades.
D29: ⚠️ Atención: Si deseas que el saldo de esta plantilla coincida con el saldo real de tu banco, únicamente en el mes donde comiences a registrar operaciones deberás agregar el concepto “Saldo inicial” y capturar el saldo final de tu estado de cuenta bancario del mes anterior. 💡 Ejemplo: Si comienzas a registrar operaciones en abril, tu “Saldo inicial” será el saldo final de marzo. A partir de ese momento, el Dashboard reflejará automáticamente tu saldo bancario real conforme registres tus movimientos. 📌 Importante: Este procedimiento solo debe realizarse una vez al iniciar el uso de la plantilla y posteriormente una vez al año, en el mes de enero, registrando como “Saldo inicial” el saldo final de diciembre del año anterior. 💡 Nota: Si únicamente deseas utilizar la plantilla para controlar tu flujo de efectivo y no necesitas cuadrar los saldos con tu banco, puedes omitir el registro de “Saldo inicial”.
D30: 2️⃣ Activos • Anota aquí todos los bienes, inversiones o recursos que tienen valor para tu negocio (por ejemplo: equipo, maquinaria, inventario, vehículos, inversiones financieras). Si vendes un activo o lo das de baja por venta, usa el renglón de disminución para restarlo y reflejar el valor actualizado. 💡 Tip: Esto te ayuda a tener siempre un valor real de lo que tu negocio posee.
D35: 3️⃣ Pasivos • Anota aquí todas las deudas y obligaciones financieras (préstamos, créditos, arrendamientos). • Cada vez que hagas un pago, regístralo en el renglón de disminución para ver cómo se reduce tu deuda (amortización). 💡 Tip: Monitorear tus pasivos te permite planear mejor tus pagos y evitar intereses innecesarios.
D41: 📝 Fondo de Ahorro El fondo de ahorro es una sección dentro de tu Dashboard que te permite destinar parte de tus ingresos a una meta específica. Así, además de llevar control de tu flujo de efectivo y tu capital, podrás visualizar cómo vas construyendo un ahorro mensual de forma ordenada. • Define tu meta en la hoja "Ahorro” → escribe el monto y el objetivo (ejemplo: “Fondo de emergencias” o “Nueva computadora”). • Registra tu ahorro mensual en la sección “Fondo de Ahorro” dentro del Flujo de Efectivo del mes correspondiente. • Revisa tu avance en la hoja “Ahorro” → ahí verás tu acumulado mes a mes y cuánto te falta para alcanzar tu meta. Cuando alcances tu objetivo, limpia la información y comienza con tu siguiente meta. (Si al usar tu ahorro adquieres un activo, recuerda registrarlo en la columna de Activos del mes en que lo compraste). 💡 Tip: Actualiza tu ahorro cada mes junto con tus ingresos y egresos para ver cómo impacta en tu capital.
D43: 4️⃣ Preguntas de análisis mensual Al final de cada mes, responde las preguntas que encontrarás en esta sección. Te ayudarán a reflexionar sobre tus resultados, detectar mejoras y tomar decisiones informadas.
D46: 5️⃣ Checklist fiscal (editable) • Revisa las preguntas y puntos del checklist para evaluar tu situación fiscal. • Marca con ✔️ las obligaciones fiscales que ya cumpliste en el mes (por ejemplo: declaraciones mensuales, pago de impuestos, retenciones, IMSS, facturación). • Agrega o elimina ítems según tus obligaciones específicas. • Usa este apartado como recordatorio mensual para no pasar por alto ningún trámite o pago importante. 💡 Tip: Mantener este checklist actualizado evitará multas, recargos y estrés fiscal.
D49: Observaciones: • Esta plantilla funciona como una minicontabilidad mensual y como un recordatorio fiscal (checklist) para tus obligaciones. • Puedes adaptarla para uso personal o de tu negocio, y agregar o modificar conceptos según tus necesidades. • Al final de cada mes, utiliza esta información para analizar tu situación y tomar mejores decisiones financieras y fiscales. • Toda la información que registres se reflejará en el Dashboard Financiero-Fiscal, permitiéndote visualizar tu panorama anual.

Sheet CHECKLIST
E8: Objetivo: Ayudarte a identificar si estás cumpliendo con tus obligaciones fiscales para evitar riesgos y sanciones.
E11: No. | F11: Pregunta/Actividad | G11: Sí
E12: 1 | F12: ¿Estás dado/a de alta en el SAT con el régimen fiscal adecuado a tu actividad? | G12: TRUE
E13: 2 | F13: ¿Tienes habilitado tu Buzón Tributario con al menos dos medios de contacto válidos? | G13: TRUE
E14: 3 | F14: ¿Cuentas con tu e.firma vigente y respaldada en lugar seguro? | G14: TRUE
E15: 4 | F15: ¿Emites todas tus facturas electrónicas (CFDI) por los ingresos que generas? | G15: TRUE
E16: 5 | F16: ¿Solicitas facturas válidas por tus gastos deducibles? (deben cumplir con requisitos fiscales) | G16: TRUE
E17: 6 | F17: ¿Tus declaraciones mensuales y anual se han presentado en tiempo y forma? | G17: TRUE
E18: 7 | F18: ¿Sabes cuánto estás pagando en impuestos mensualmente y por qué conceptos? | G18: TRUE
E19: 8 | F19: ¿Tu contabilidad está organizada y actualizada (al menos un registro mensual)? | G19: TRUE
E20: 9 | F20: ¿Tienes identificados claramente tus ingresos, gastos, activos y pasivos? | G20: TRUE
E21: 10 | F21: ¿Cuentas con un control mensual de flujo de efectivo? | G21: FALSE
E22: 11 | F22: ¿Ahorras mensualmente para impuestos u otros objetivos financieros? | G22: TRUE
E23: 12 | F23: ¿Tienes una meta financiera definida y clara para tu negocio o vida personal? | G23: TRUE
E24: 13 | F24: ¿Guardas ordenadamente tus XML, acuses, declaraciones y documentos fiscales? | G24: FALSE
E25: 14 | F25: ¿Tienes calendarizadas tus fechas clave fiscales para evitar recargos o multas? | G25: FALSE
E26: 15 | F26: ¿Recibes asesoría contable o fiscal de forma periódica (aunque sea trimestral)? | G26: TRUE
E27: % de Cumpliento Fiscal
E29: =COUNTIF(G12:G26,"Verdadero")/COUNTA(G12:G26) -> 0.8
E31: Diagnóstico:
E32: =IF(E34<=6,"Alerta máxima",IF(E34<=11,"Área de mejora","Cumplimiento sólido")) -> Cumplimiento sólido
E34: =COUNTIF(G12:G26,"Verdadero") -> 12

Sheet ENERO
C2: FLUJO DE EFECTIVO
C4: Nombre/Empresa:
B9: Parte 1
B11: Ingresos | E11: Egresos | I11: Flujo Neto Mensual
B12: Ingresos del mes | C12: Monto | E12: Egresos del mes | F12: Monto | I12: =C35 - F35 -> 50000
B13: Saldo inicial: | E13: Insumos | F13: 50000
B14: Ventas de productos o servicios | C14: 100000 | E14: Sueldos
B15: Ingresos por comisiones | E15: Servicios (luz, internet, etc.)
B16: Ingresos por arrendamiento | C16: 0 | E16: Papelería
B17: Ingresos por regalías | E17: Gasolina
B18: Intereses cobrados | E18: Suscripciones
B19: Ingresos por instrumentos financieros | E19: Honorarios profesionales
B20: Ingresos adicionales (freelance, etc.) | E20: Renta
B21: Otros ingresos | E21: Pago de intereses
E22: Otros gastos del negocio
E23: Impuestos y retenciones | I23: =IF(I12<=0,"¿De dónde proviene tu financiamiento?","¿En qué vas a invertir este dinero?") -> ¿En qué vas a invertir este dinero?
E24: IMSS e INFONAVIT
E25: IVA
C34: Total Ingresos | F34: Total Egresos
C35: =SUM(C13:C33) -> 100000 | F35: =SUM(F13:F33) -> 50000
B39: Activos | E39: Pasivos | I39: Capital
B40: Activos del mes | C40: Valor | E40: Pasivos del mes | F40: Valor | I40: =+C63-F63+I52 -> 50000
B41: Computadora | C41: 30000 | E41: Créditos bancarios empresariales | F41: 10000
B42: Automóvil | E42: Créditos bancarios personales
B43: Escritorio | E43: Hipotecas
B44: Equipos, maquinaria o herramientas | E44: Tarjetas de crédito
B45: Marcas o patentes | E45: Deudas adquiridas con terceros
B46: Inversiones (CETES, acciones, etc.) | C46: 10000 | E46: Otras deudas
B47: Propiedades (casas, oficinas, bodegas, etc.)
B48: Otros activos
B49: Disminución de activos | E49: Disminución de pasivos
I51: Fondo de Ahoro
I52: 20000
C62: Total Activos | F62: Total Pasivos
C63: =SUM(C41:C61)-C49-C49 -> 40000 | F63: =SUM(F41:F61)-F49-F49 -> 10000
B67: Parte 2
B68: Análisis financiero mensual
B70: Instrucciones: Analiza la información de la parte 1. Reflexiona sobre tu flujo de efectivo y las decisiones que estás tomando.
B72: 🧠 1. Conciencia del uso del dinero
B73: ¿En qué rubros se va la mayor parte de tu dinero?
B76: ¿Cuáles gastos fueron realmente necesarios y cuáles podrías evitar el próximo mes?
B79: ¿Tienes gastos que puedes reducir sin afectar tu operación o bienestar?
B83: 💡 2. Toma de decisiones
B84: ¿Tuviste excedente este mes? ¿Qué hiciste con él?
B86: Lo ahorré
B87: Lo invertí
B88: Lo reinvertí en mi negocio
B89: Lo usé en gastos personales
B90: No sé a dónde se fue
B91: Otro (Especifíca)
B97: Si tuviste un déficit, ¿cómo lo resolviste?
B98: Usé ahorros
B99: Pedí prestado
B100: Dejé de pagar algo
B101: Otro (Especifíca)
B107: 🎯 3. Planeación hacia el siguiente mes
B108: ¿Qué acción concreta vas a tomar para mejorar tu flujo de efectivo?
B109: Ejemplo: aumentar ingresos, reducir un gasto, controlar mejor el efectivo, etc.
B111: ¿Qué metas financieras tienes para el próximo mes?
B115: 📝 4. Espacio libre para anotaciones
B116: Escribe lo que aprendiste este mes o tus objetivos financieros

Sheet FEBRERO
C2: FLUJO DE EFECTIVO
C4: Nombre/Empresa:
B9: Parte 1
B11: Ingresos | E11: Egresos | I11: Flujo Neto Mensual
B12: Ingresos del mes | C12: Monto | E12: Egresos del mes | F12: Monto | I12: =C35 - F35 -> -30000
B13: Saldo inicial: | E13: Insumos
B14: Ventas de productos o servicios | C14: 50000 | E14: Sueldos | F14: 80000
B15: Ingresos por comisiones | E15: Servicios (luz, internet, etc.)
B16: Ingresos por arrendamiento | E16: Papelería
B17: Ingresos por regalías | E17: Gasolina
B18: Intereses cobrados | E18: Suscripciones
B19: Ingresos por instrumentos financieros | E19: Honorarios profesionales
B20: Ingresos adicionales (freelance, etc.) | E20: Renta
B21: Otros ingresos | E21: Pago de intereses
E22: Otros gastos del negocio
E23: Impuestos y retenciones | I23: =IF(I12<=0,"¿De dónde proviene tu financiamiento?","¿En qué vas a invertir este dinero?") -> ¿De dónde proviene tu financiamiento?
E24: IMSS e INFONAVIT
E25: IVA
C34: Total Ingresos | F34: Total Egresos
C35: =SUM(C13:C33) -> 50000 | F35: =SUM(F13:F33) -> 80000
B39: Activos | E39: Pasivos | I39: Capital
B40: Activos del mes | C40: Valor | E40: Pasivos del mes | F40: Valor | I40: =+C63-F63+I52 -> -30000
B41: Computadora | E41: Créditos bancarios empresariales | F41: 30000
B42: Automóvil | E42: Créditos bancarios personales
B43: Escritorio | E43: Hipotecas
B44: Equipos, maquinaria o herramientas | E44: Tarjetas de crédito
B45: Marcas o patentes | E45: Deudas adquiridas con terceros
B46: Inversiones (CETES, acciones, etc.) | C46: 0 | E46: Otras deudas
B47: Propiedades (casas, oficinas, bodegas, etc.)
B48: Otros activos
B49: Disminución de activos | E49: Disminución de pasivos
I51: Fondo de Ahoro
C62: Total Activos | F62: Total Pasivos
C63: =SUM(C41:C61)-C49-C49 -> 0 | F63: =SUM(F41:F61)-F49-F49 -> 30000
B67: Parte 2
B68: Análisis financiero mensual
B70: Instrucciones: Analiza la información de la parte 1. Reflexiona sobre tu flujo de efectivo y las decisiones que estás tomando.
B72: 🧠 1. Conciencia del uso del dinero
B73: ¿En qué rubros se va la mayor parte de tu dinero?
B76: ¿Cuáles gastos fueron realmente necesarios y cuáles podrías evitar el próximo mes?
B79: ¿Tienes gastos que puedes reducir sin afectar tu operación o bienestar?
B83: 💡 2. Toma de decisiones
B84: ¿Tuviste excedente este mes? ¿Qué hiciste con él?
B86: Lo ahorré
B87: Lo invertí
B88: Lo reinvertí en mi negocio
B89: Lo usé en gastos personales
B90: No sé a dónde se fue
B91: Otro (Especifíca)
B97: Si tuviste un déficit, ¿cómo lo resolviste?
B98: Usé ahorros
B99: Pedí prestado
B100: Dejé de pagar algo
B101: Otro (Especifíca)
B107: 🎯 3. Planeación hacia el siguiente mes
B108: ¿Qué acción concreta vas a tomar para mejorar tu flujo de efectivo?
B109: Ejemplo: aumentar ingresos, reducir un gasto, controlar mejor el efectivo, etc.
B111: ¿Qué metas financieras tienes para el próximo mes?
B115: 📝 4. Espacio libre para anotaciones
B116: Escribe lo que aprendiste este mes o tus objetivos financieros

Sheet MARZO
C2: FLUJO DE EFECTIVO
C4: Nombre/Empresa:
B9: Parte 1
B11: Ingresos | E11: Egresos | I11: Flujo Neto Mensual
B12: Ingresos del mes | C12: Monto | E12: Egresos del mes | F12: Monto | I12: =C35 - F35 -> 20000
B13: Saldo inicial: | E13: Insumos
B14: Ventas de productos o servicios | C14: 70000 | E14: Sueldos | F14: 50000
B15: Ingresos por comisiones | E15: Servicios (luz, internet, etc.)
B16: Ingresos por arrendamiento | E16: Papelería
B17: Ingresos por regalías | E17: Gasolina
B18: Intereses cobrados | E18: Suscripciones
B19: Ingresos por instrumentos financieros | E19: Honorarios profesionales
B20: Ingresos adicionales (freelance, etc.) | E20: Renta
B21: Otros ingresos | E21: Pago de intereses
E22: Otros gastos del negocio
E23: Impuestos y retenciones | I23: =IF(I12<=0,"¿De dónde proviene tu financiamiento?","¿En qué vas a invertir este dinero?") -> ¿En qué vas a invertir este dinero?
E24: IMSS e INFONAVIT
E25: IVA
C34: Total Ingresos | F34: Total Egresos
C35: =SUM(C13:C33) -> 70000 | F35: =SUM(F13:F33) -> 50000
B39: Activos | E39: Pasivos | I39: Capital
B40: Activos del mes | C40: Valor | E40: Pasivos del mes | F40: Valor | I40: =+C63-F63+I52 -> 10000
B41: Computadora | E41: Créditos bancarios empresariales
B42: Automóvil | E42: Créditos bancarios personales
B43: Escritorio | E43: Hipotecas
B44: Equipos, maquinaria o herramientas | E44: Tarjetas de crédito
B45: Marcas o patentes | E45: Deudas adquiridas con terceros
B46: Inversiones (CETES, acciones, etc.) | C46: 0 | E46: Otras deudas
B47: Propiedades (casas, oficinas, bodegas, etc.)
B48: Otros activos
B49: Disminución de activos | E49: Disminución de pasivos | F49: 10000
I51: Fondo de Ahoro
C62: Total Activos | F62: Total Pasivos
C63: =SUM(C41:C61)-C49-C49 -> 0 | F63: =SUM(F41:F61)-F49-F49 -> -10000
B67: Parte 2
B68: Análisis financiero mensual
B70: Instrucciones: Analiza la información de la parte 1. Reflexiona sobre tu flujo de efectivo y las decisiones que estás tomando.
B72: 🧠 1. Conciencia del uso del dinero
B73: ¿En qué rubros se va la mayor parte de tu dinero?
B76: ¿Cuáles gastos fueron realmente necesarios y cuáles podrías evitar el próximo mes?
B79: ¿Tienes gastos que puedes reducir sin afectar tu operación o bienestar?
B83: 💡 2. Toma de decisiones
B84: ¿Tuviste excedente este mes? ¿Qué hiciste con él?
B86: Lo ahorré
B87: Lo invertí
B88: Lo reinvertí en mi negocio
B89: Lo usé en gastos personales
B90: No sé a dónde se fue
B91: Otro (Especifíca)
B97: Si tuviste un déficit, ¿cómo lo resolviste?
B98: Usé ahorros
B99: Pedí prestado
B100: Dejé de pagar algo
B101: Otro (Especifíca)
B107: 🎯 3. Planeación hacia el siguiente mes
B108: ¿Qué acción concreta vas a tomar para mejorar tu flujo de efectivo?
B109: Ejemplo: aumentar ingresos, reducir un gasto, controlar mejor el efectivo, etc.
B111: ¿Qué metas financieras tienes para el próximo mes?
B115: 📝 4. Espacio libre para anotaciones
B116: Escribe lo que aprendiste este mes o tus objetivos financieros

Sheet ABRIL
C2: FLUJO DE EFECTIVO
C4: Nombre/Empresa:
B9: Parte 1
B11: Ingresos | E11: Egresos | I11: Flujo Neto Mensual
B12: Ingresos del mes | C12: Monto | E12: Egresos del mes | F12: Monto | I12: =C35 - F35 -> 60000
B13: Saldo inicial: | E13: Insumos
B14: Ventas de productos o servicios | C14: 120000 | E14: Sueldos | F14: 60000
B15: Ingresos por comisiones | E15: Servicios (luz, internet, etc.)
B16: Ingresos por arrendamiento | E16: Papelería
B17: Ingresos por regalías | E17: Gasolina
B18: Intereses cobrados | E18: Suscripciones
B19: Ingresos por instrumentos financieros | E19: Honorarios profesionales
B20: Ingresos adicionales (freelance, etc.) | E20: Renta
B21: Otros ingresos | E21: Pago de intereses
E22: Otros gastos del negocio
E23: Impuestos y retenciones | I23: =IF(I12<=0,"¿De dónde proviene tu financiamiento?","¿En qué vas a invertir este dinero?") -> ¿En qué vas a invertir este dinero?
E24: IMSS e INFONAVIT
E25: IVA
C34: Total Ingresos | F34: Total Egresos
C35: =SUM(C13:C33) -> 120000 | F35: =SUM(F13:F33) -> 60000
B39: Activos | E39: Pasivos | I39: Capital
B40: Activos del mes | C40: Valor | E40: Pasivos del mes | F40: Valor | I40: =+C63-F63+I52 -> 50000
B41: Computadora | E41: Créditos bancarios empresariales
B42: Automóvil | E42: Créditos bancarios personales
B43: Escritorio | E43: Hipotecas
B44: Equipos, maquinaria o herramientas | E44: Tarjetas de crédito
B45: Marcas o patentes | E45: Deudas adquiridas con terceros
B46: Inversiones (CETES, acciones, etc.) | C46: 30000 | E46: Otras deudas
B47: Propiedades (casas, oficinas, bodegas, etc.)
B48: Otros activos
B49: Disminución de activos | E49: Disminución de pasivos
I51: Fondo de Ahoro
I52: 20000
C62: Total Activos | F62: Total Pasivos
C63: =SUM(C41:C61)-C49-C49 -> 30000 | F63: =SUM(F41:F61)-F49-F49 -> 0
B67: Parte 2
B68: Análisis financiero mensual
B70: Instrucciones: Analiza la información de la parte 1. Reflexiona sobre tu flujo de efectivo y las decisiones que estás tomando.
B72: 🧠 1. Conciencia del uso del dinero
B73: ¿En qué rubros se va la mayor parte de tu dinero?
B76: ¿Cuáles gastos fueron realmente necesarios y cuáles podrías evitar el próximo mes?
B79: ¿Tienes gastos que puedes reducir sin afectar tu operación o bienestar?
B83: 💡 2. Toma de decisiones
B84: ¿Tuviste excedente este mes? ¿Qué hiciste con él?
B86: Lo ahorré
B87: Lo invertí
B88: Lo reinvertí en mi negocio
B89: Lo usé en gastos personales
B90: No sé a dónde se fue
B91: Otro (Especifíca)
B97: Si tuviste un déficit, ¿cómo lo resolviste?
B98: Usé ahorros
B99: Pedí prestado
B100: Dejé de pagar algo
B101: Otro (Especifíca)
B107: 🎯 3. Planeación hacia el siguiente mes
B108: ¿Qué acción concreta vas a tomar para mejorar tu flujo de efectivo?
B109: Ejemplo: aumentar ingresos, reducir un gasto, controlar mejor el efectivo, etc.
B111: ¿Qué metas financieras tienes para el próximo mes?
B115: 📝 4. Espacio libre para anotaciones
B116: Escribe lo que aprendiste este mes o tus objetivos financieros

Sheet MAYO
C2: FLUJO DE EFECTIVO
C4: Nombre/Empresa:
B9: Parte 1
B11: Ingresos | E11: Egresos | I11: Flujo Neto Mensual
B12: Ingresos del mes | C12: Monto | E12: Egresos del mes | F12: Monto | I12: =C35 - F35 -> -40000
B13: Saldo inicial: | E13: Insumos
B14: Ventas de productos o servicios | C14: 40000 | E14: Sueldos | F14: 80000
B15: Ingresos por comisiones | E15: Servicios (luz, internet, etc.)
B16: Ingresos por arrendamiento | E16: Papelería
B17: Ingresos por regalías | E17: Gasolina
B18: Intereses cobrados | E18: Suscripciones
B19: Ingresos por instrumentos financieros | E19: Honorarios profesionales
B20: Ingresos adicionales (freelance, etc.) | E20: Renta
B21: Otros ingresos | E21: Pago de intereses
E22: Otros gastos del negocio
E23: Impuestos y retenciones | I23: =IF(I12<=0,"¿De dónde proviene tu financiamiento?","¿En qué vas a invertir este dinero?") -> ¿De dónde proviene tu financiamiento?
E24: IMSS e INFONAVIT
E25: IVA
C34: Total Ingresos | F34: Total Egresos
C35: =SUM(C13:C33) -> 40000 | F35: =SUM(F13:F33) -> 80000
B39: Activos | E39: Pasivos | I39: Capital
B40: Activos del mes | C40: Valor | E40: Pasivos del mes | F40: Valor | I40: =+C63-F63+I52 -> -100000
B41: Computadora | E41: Créditos bancarios empresariales | F41: 100000
B42: Automóvil | E42: Créditos bancarios personales
B43: Escritorio | E43: Hipotecas
B44: Equipos, maquinaria o herramientas | E44: Tarjetas de crédito
B45: Marcas o patentes | E45: Deudas adquiridas con terceros
B46: Inversiones (CETES, acciones, etc.) | E46: Otras deudas
B47: Propiedades (casas, oficinas, bodegas, etc.)
B48: Otros activos
B49: Disminución de activos | E49: Disminución de pasivos
I51: Fondo de Ahoro
C62: Total Activos | F62: Total Pasivos
C63: =SUM(C41:C61)-C49-C49 -> 0 | F63: =SUM(F41:F61)-F49-F49 -> 100000
B67: Parte 2
B68: Análisis financiero mensual
B70: Instrucciones: Analiza la información de la parte 1. Reflexiona sobre tu flujo de efectivo y las decisiones que estás tomando.
B72: 🧠 1. Conciencia del uso del dinero
B73: ¿En qué rubros se va la mayor parte de tu dinero?
B76: ¿Cuáles gastos fueron realmente necesarios y cuáles podrías evitar el próximo mes?
B79: ¿Tienes gastos que puedes reducir sin afectar tu operación o bienestar?
B83: 💡 2. Toma de decisiones
B84: ¿Tuviste excedente este mes? ¿Qué hiciste con él?
B86: Lo ahorré
B87: Lo invertí
B88: Lo reinvertí en mi negocio
B89: Lo usé en gastos personales
B90: No sé a dónde se fue
B91: Otro (Especifíca)
B97: Si tuviste un déficit, ¿cómo lo resolviste?
B98: Usé ahorros
B99: Pedí prestado
B100: Dejé de pagar algo
B101: Otro (Especifíca)
B107: 🎯 3. Planeación hacia el siguiente mes
B108: ¿Qué acción concreta vas a tomar para mejorar tu flujo de efectivo?
B109: Ejemplo: aumentar ingresos, reducir un gasto, controlar mejor el efectivo, etc.
B111: ¿Qué metas financieras tienes para el próximo mes?
B115: 📝 4. Espacio libre para anotaciones
B116: Escribe lo que aprendiste este mes o tus objetivos financieros

Sheet JUNIO
C2: FLUJO DE EFECTIVO
C4: Nombre/Empresa:
B9: Parte 1
B11: Ingresos | E11: Egresos | I11: Flujo Neto Mensual
B12: Ingresos del mes | C12: Monto | E12: Egresos del mes | F12: Monto | I12: =C35 - F35 -> 0
B13: Saldo inicial: | E13: Insumos
B14: Ventas de productos o servicios | E14: Sueldos
B15: Ingresos por comisiones | E15: Servicios (luz, internet, etc.)
B16: Ingresos por arrendamiento | C16: 0 | E16: Papelería
B17: Ingresos por regalías | E17: Gasolina
B18: Intereses cobrados | E18: Suscripciones
B19: Ingresos por instrumentos financieros | E19: Honorarios profesionales
B20: Ingresos adicionales (freelance, etc.) | E20: Renta
B21: Otros ingresos | E21: Pago de intereses
E22: Otros gastos del negocio
E23: Impuestos y retenciones | I23: =IF(I12<=0,"¿De dónde proviene tu financiamiento?","¿En qué vas a invertir este dinero?") -> ¿De dónde proviene tu financiamiento?
E24: IMSS e INFONAVIT
E25: IVA
C34: Total Ingresos | F34: Total Egresos
C35: =SUM(C13:C33) -> 0 | F35: =SUM(F13:F33) -> 0
B39: Activos | E39: Pasivos | I39: Capital
B40: Activos del mes | C40: Valor | E40: Pasivos del mes | F40: Valor | I40: =+C63-F63+I52 -> 0
B41: Computadora | E41: Créditos bancarios empresariales
B42: Automóvil | E42: Créditos bancarios personales
B43: Escritorio | E43: Hipotecas
B44: Equipos, maquinaria o herramientas | E44: Tarjetas de crédito
B45: Marcas o patentes | E45: Deudas adquiridas con terceros
B46: Inversiones (CETES, acciones, etc.) | C46: 0 | E46: Otras deudas
B47: Propiedades (casas, oficinas, bodegas, etc.)
B48: Otros activos
B49: Disminución de activos | E49: Disminución de pasivos
I51: Fondo de Ahoro
C62: Total Activos | F62: Total Pasivos
C63: =SUM(C41:C61)-C49-C49 -> 0 | F63: =SUM(F41:F61)-F49-F49 -> 0
B67: Parte 2
B68: Análisis financiero mensual
B70: Instrucciones: Analiza la información de la parte 1. Reflexiona sobre tu flujo de efectivo y las decisiones que estás tomando.
B72: 🧠 1. Conciencia del uso del dinero
B73: ¿En qué rubros se va la mayor parte de tu dinero?
B76: ¿Cuáles gastos fueron realmente necesarios y cuáles podrías evitar el próximo mes?
B79: ¿Tienes gastos que puedes reducir sin afectar tu operación o bienestar?
B83: 💡 2. Toma de decisiones
B84: ¿Tuviste excedente este mes? ¿Qué hiciste con él?
B86: Lo ahorré
B87: Lo invertí
B88: Lo reinvertí en mi negocio
B89: Lo usé en gastos personales
B90: No sé a dónde se fue
B91: Otro (Especifíca)
B97: Si tuviste un déficit, ¿cómo lo resolviste?
B98: Usé ahorros
B99: Pedí prestado
B100: Dejé de pagar algo
B101: Otro (Especifíca)
B107: 🎯 3. Planeación hacia el siguiente mes
B108: ¿Qué acción concreta vas a tomar para mejorar tu flujo de efectivo?
B109: Ejemplo: aumentar ingresos, reducir un gasto, controlar mejor el efectivo, etc.
B111: ¿Qué metas financieras tienes para el próximo mes?
B115: 📝 4. Espacio libre para anotaciones
B116: Escribe lo que aprendiste este mes o tus objetivos financieros

Sheet JULIO
C2: FLUJO DE EFECTIVO
C4: Nombre/Empresa:
B9: Parte 1
B11: Ingresos | E11: Egresos | I11: Flujo Neto Mensual
B12: Ingresos del mes | C12: Monto | E12: Egresos del mes | F12: Monto | I12: =C35 - F35 -> 0
B13: Saldo inicial: | E13: Insumos
B14: Ventas de productos o servicios | E14: Sueldos
B15: Ingresos por comisiones | E15: Servicios (luz, internet, etc.)
B16: Ingresos por arrendamiento | C16: 0 | E16: Papelería
B17: Ingresos por regalías | E17: Gasolina
B18: Intereses cobrados | E18: Suscripciones
B19: Ingresos por instrumentos financieros | E19: Honorarios profesionales
B20: Ingresos adicionales (freelance, etc.) | E20: Renta
B21: Otros ingresos | E21: Pago de intereses
E22: Otros gastos del negocio
E23: Impuestos y retenciones | I23: =IF(I12<=0,"¿De dónde proviene tu financiamiento?","¿En qué vas a invertir este dinero?") -> ¿De dónde proviene tu financiamiento?
E24: IMSS e INFONAVIT
E25: IVA
C34: Total Ingresos | F34: Total Egresos
C35: =SUM(C13:C33) -> 0 | F35: =SUM(F13:F33) -> 0
B39: Activos | E39: Pasivos | I39: Capital
B40: Activos del mes | C40: Valor | E40: Pasivos del mes | F40: Valor | I40: =+C63-F63+I52 -> 0
B41: Computadora | E41: Créditos bancarios empresariales
B42: Automóvil | E42: Créditos bancarios personales
B43: Escritorio | E43: Hipotecas
B44: Equipos, maquinaria o herramientas | E44: Tarjetas de crédito
B45: Marcas o patentes | E45: Deudas adquiridas con terceros
B46: Inversiones (CETES, acciones, etc.) | C46: 0 | E46: Otras deudas
B47: Propiedades (casas, oficinas, bodegas, etc.)
B48: Otros activos
B49: Disminución de activos | E49: Disminución de pasivos
I51: Fondo de Ahoro
C62: Total Activos | F62: Total Pasivos
C63: =SUM(C41:C61)-C49-C49 -> 0 | F63: =SUM(F41:F61)-F49-F49 -> 0
B67: Parte 2
B68: Análisis financiero mensual
B70: Instrucciones: Analiza la información de la parte 1. Reflexiona sobre tu flujo de efectivo y las decisiones que estás tomando.
B72: 🧠 1. Conciencia del uso del dinero
B73: ¿En qué rubros se va la mayor parte de tu dinero?
B76: ¿Cuáles gastos fueron realmente necesarios y cuáles podrías evitar el próximo mes?
B79: ¿Tienes gastos que puedes reducir sin afectar tu operación o bienestar?
B83: 💡 2. Toma de decisiones
B84: ¿Tuviste excedente este mes? ¿Qué hiciste con él?
B86: Lo ahorré
B87: Lo invertí
B88: Lo reinvertí en mi negocio
B89: Lo usé en gastos personales
B90: No sé a dónde se fue
B91: Otro (Especifíca)
B97: Si tuviste un déficit, ¿cómo lo resolviste?
B98: Usé ahorros
B99: Pedí prestado
B100: Dejé de pagar algo
B101: Otro (Especifíca)
B107: 🎯 3. Planeación hacia el siguiente mes
B108: ¿Qué acción concreta vas a tomar para mejorar tu flujo de efectivo?
B109: Ejemplo: aumentar ingresos, reducir un gasto, controlar mejor el efectivo, etc.
B111: ¿Qué metas financieras tienes para el próximo mes?
B115: 📝 4. Espacio libre para anotaciones
B116: Escribe lo que aprendiste este mes o tus objetivos financieros

Sheet AGOSTO
C2: FLUJO DE EFECTIVO
C4: Nombre/Empresa:
B9: Parte 1
B11: Ingresos | E11: Egresos | I11: Flujo Neto Mensual
B12: Ingresos del mes | C12: Monto | E12: Egresos del mes | F12: Monto | I12: =C35 - F35 -> 0
B13: Saldo inicial: | E13: Insumos
B14: Ventas de productos o servicios | E14: Sueldos
B15: Ingresos por comisiones | E15: Servicios (luz, internet, etc.)
B16: Ingresos por arrendamiento | E16: Papelería
B17: Ingresos por regalías | E17: Gasolina
B18: Intereses cobrados | E18: Suscripciones
B19: Ingresos por instrumentos financieros | E19: Honorarios profesionales
B20: Ingresos adicionales (freelance, etc.) | E20: Renta
B21: Otros ingresos | E21: Pago de intereses
E22: Otros gastos del negocio
E23: Impuestos y retenciones | I23: =IF(I12<=0,"¿De dónde proviene tu financiamiento?","¿En qué vas a invertir este dinero?") -> ¿De dónde proviene tu financiamiento?
E24: IMSS e INFONAVIT
E25: IVA
C34: Total Ingresos | F34: Total Egresos
C35: =SUM(C13:C33) -> 0 | F35: =SUM(F13:F33) -> 0
B39: Activos | E39: Pasivos | I39: Capital
B40: Activos del mes | C40: Valor | E40: Pasivos del mes | F40: Valor | I40: =+C63-F63+I52 -> 0
B41: Computadora | E41: Créditos bancarios empresariales
B42: Automóvil | E42: Créditos bancarios personales
B43: Escritorio | E43: Hipotecas
B44: Equipos, maquinaria o herramientas | E44: Tarjetas de crédito
B45: Marcas o patentes | E45: Deudas adquiridas con terceros
B46: Inversiones (CETES, acciones, etc.) | E46: Otras deudas
B47: Propiedades (casas, oficinas, bodegas, etc.)
B48: Otros activos
B49: Disminución de activos | E49: Disminución de pasivos
I51: Fondo de Ahoro
C62: Total Activos | F62: Total Pasivos
C63: =SUM(C41:C61)-C49-C49 -> 0 | F63: =SUM(F41:F61)-F49-F49 -> 0
B67: Parte 2
B68: Análisis financiero mensual
B70: Instrucciones: Analiza la información de la parte 1. Reflexiona sobre tu flujo de efectivo y las decisiones que estás tomando.
B72: 🧠 1. Conciencia del uso del dinero
B73: ¿En qué rubros se va la mayor parte de tu dinero?
B76: ¿Cuáles gastos fueron realmente necesarios y cuáles podrías evitar el próximo mes?
B79: ¿Tienes gastos que puedes reducir sin afectar tu operación o bienestar?
B83: 💡 2. Toma de decisiones
B84: ¿Tuviste excedente este mes? ¿Qué hiciste con él?
B86: Lo ahorré
B87: Lo invertí
B88: Lo reinvertí en mi negocio
B89: Lo usé en gastos personales
B90: No sé a dónde se fue
B91: Otro (Especifíca)
B97: Si tuviste un déficit, ¿cómo lo resolviste?
B98: Usé ahorros
B99: Pedí prestado
B100: Dejé de pagar algo
B101: Otro (Especifíca)
B107: 🎯 3. Planeación hacia el siguiente mes
B108: ¿Qué acción concreta vas a tomar para mejorar tu flujo de efectivo?
B109: Ejemplo: aumentar ingresos, reducir un gasto, controlar mejor el efectivo, etc.
B111: ¿Qué metas financieras tienes para el próximo mes?
B115: 📝 4. Espacio libre para anotaciones
B116: Escribe lo que aprendiste este mes o tus objetivos financieros

Sheet SEPTIEMBRE
C2: FLUJO DE EFECTIVO
C4: Nombre/Empresa:
B9: Parte 1
B11: Ingresos | E11: Egresos | I11: Flujo Neto Mensual
B12: Ingresos del mes | C12: Monto | E12: Egresos del mes | F12: Monto | I12: =C35 - F35 -> 0
B13: Saldo inicial: | E13: Insumos
B14: Ventas de productos o servicios | E14: Sueldos
B15: Ingresos por comisiones | E15: Servicios (luz, internet, etc.)
B16: Ingresos por arrendamiento | E16: Papelería
B17: Ingresos por regalías | E17: Gasolina
B18: Intereses cobrados | E18: Suscripciones
B19: Ingresos por instrumentos financieros | E19: Honorarios profesionales
B20: Ingresos adicionales (freelance, etc.) | E20: Renta
B21: Otros ingresos | E21: Pago de intereses
E22: Otros gastos del negocio
E23: Impuestos y retenciones | I23: =IF(I12<=0,"¿De dónde proviene tu financiamiento?","¿En qué vas a invertir este dinero?") -> ¿De dónde proviene tu financiamiento?
E24: IMSS e INFONAVIT
E25: IVA
C34: Total Ingresos | F34: Total Egresos
C35: =SUM(C13:C33) -> 0 | F35: =SUM(F13:F33) -> 0
B39: Activos | E39: Pasivos | I39: Capital
B40: Activos del mes | C40: Valor | E40: Pasivos del mes | F40: Valor | I40: =+C63-F63+I52 -> 0
B41: Computadora | E41: Créditos bancarios empresariales
B42: Automóvil | E42: Créditos bancarios personales
B43: Escritorio | E43: Hipotecas
B44: Equipos, maquinaria o herramientas | E44: Tarjetas de crédito
B45: Marcas o patentes | E45: Deudas adquiridas con terceros
B46: Inversiones (CETES, acciones, etc.) | E46: Otras deudas
B47: Propiedades (casas, oficinas, bodegas, etc.)
B48: Otros activos
B49: Disminución de activos | E49: Disminución de pasivos
I51: Fondo de Ahoro
C62: Total Activos | F62: Total Pasivos
C63: =SUM(C41:C61)-C49-C49 -> 0 | F63: =SUM(F41:F61)-F49-F49 -> 0
B67: Parte 2
B68: Análisis financiero mensual
B70: Instrucciones: Analiza la información de la parte 1. Reflexiona sobre tu flujo de efectivo y las decisiones que estás tomando.
B72: 🧠 1. Conciencia del uso del dinero
B73: ¿En qué rubros se va la mayor parte de tu dinero?
B76: ¿Cuáles gastos fueron realmente necesarios y cuáles podrías evitar el próximo mes?
B79: ¿Tienes gastos que puedes reducir sin afectar tu operación o bienestar?
B83: 💡 2. Toma de decisiones
B84: ¿Tuviste excedente este mes? ¿Qué hiciste con él?
B86: Lo ahorré
B87: Lo invertí
B88: Lo reinvertí en mi negocio
B89: Lo usé en gastos personales
B90: No sé a dónde se fue
B91: Otro (Especifíca)
B97: Si tuviste un déficit, ¿cómo lo resolviste?
B98: Usé ahorros
B99: Pedí prestado
B100: Dejé de pagar algo
B101: Otro (Especifíca)
B107: 🎯 3. Planeación hacia el siguiente mes
B108: ¿Qué acción concreta vas a tomar para mejorar tu flujo de efectivo?
B109: Ejemplo: aumentar ingresos, reducir un gasto, controlar mejor el efectivo, etc.
B111: ¿Qué metas financieras tienes para el próximo mes?
B115: 📝 4. Espacio libre para anotaciones
B116: Escribe lo que aprendiste este mes o tus objetivos financieros

Sheet OCTUBRE
C2: FLUJO DE EFECTIVO
C4: Nombre/Empresa:
B9: Parte 1
B11: Ingresos | E11: Egresos | I11: Flujo Neto Mensual
B12: Ingresos del mes | C12: Monto | E12: Egresos del mes | F12: Monto | I12: =C35 - F35 -> 0
B13: Saldo inicial: | E13: Insumos
B14: Ventas de productos o servicios | E14: Sueldos
B15: Ingresos por comisiones | E15: Servicios (luz, internet, etc.)
B16: Ingresos por arrendamiento | E16: Papelería
B17: Ingresos por regalías | E17: Gasolina
B18: Intereses cobrados | E18: Suscripciones
B19: Ingresos por instrumentos financieros | E19: Honorarios profesionales
B20: Ingresos adicionales (freelance, etc.) | E20: Renta
B21: Otros ingresos | E21: Pago de intereses
E22: Otros gastos del negocio
E23: Impuestos y retenciones | I23: =IF(I12<=0,"¿De dónde proviene tu financiamiento?","¿En qué vas a invertir este dinero?") -> ¿De dónde proviene tu financiamiento?
E24: IMSS e INFONAVIT
E25: IVA
C34: Total Ingresos | F34: Total Egresos
C35: =SUM(C13:C33) -> 0 | F35: =SUM(F13:F33) -> 0
B39: Activos | E39: Pasivos | I39: Capital
B40: Activos del mes | C40: Valor | E40: Pasivos del mes | F40: Valor | I40: =+C63-F63+I52 -> 0
B41: Computadora | E41: Créditos bancarios empresariales
B42: Automóvil | E42: Créditos bancarios personales
B43: Escritorio | E43: Hipotecas
B44: Equipos, maquinaria o herramientas | E44: Tarjetas de crédito
B45: Marcas o patentes | E45: Deudas adquiridas con terceros
B46: Inversiones (CETES, acciones, etc.) | C46: 0 | E46: Otras deudas
B47: Propiedades (casas, oficinas, bodegas, etc.)
B48: Otros activos
B49: Disminución de activos | E49: Disminución de pasivos
I51: Fondo de Ahoro
C62: Total Activos | F62: Total Pasivos
C63: =SUM(C41:C61)-C49-C49 -> 0 | F63: =SUM(F41:F61)-F49-F49 -> 0
B67: Parte 2
B68: Análisis financiero mensual
B70: Instrucciones: Analiza la información de la parte 1. Reflexiona sobre tu flujo de efectivo y las decisiones que estás tomando.
B72: 🧠 1. Conciencia del uso del dinero
B73: ¿En qué rubros se va la mayor parte de tu dinero?
B76: ¿Cuáles gastos fueron realmente necesarios y cuáles podrías evitar el próximo mes?
B79: ¿Tienes gastos que puedes reducir sin afectar tu operación o bienestar?
B83: 💡 2. Toma de decisiones
B84: ¿Tuviste excedente este mes? ¿Qué hiciste con él?
B86: Lo ahorré
B87: Lo invertí
B88: Lo reinvertí en mi negocio
B89: Lo usé en gastos personales
B90: No sé a dónde se fue
B91: Otro (Especifíca)
B97: Si tuviste un déficit, ¿cómo lo resolviste?
B98: Usé ahorros
B99: Pedí prestado
B100: Dejé de pagar algo
B101: Otro (Especifíca)
B107: 🎯 3. Planeación hacia el siguiente mes
B108: ¿Qué acción concreta vas a tomar para mejorar tu flujo de efectivo?
B109: Ejemplo: aumentar ingresos, reducir un gasto, controlar mejor el efectivo, etc.
B111: ¿Qué metas financieras tienes para el próximo mes?
B115: 📝 4. Espacio libre para anotaciones
B116: Escribe lo que aprendiste este mes o tus objetivos financieros

Sheet NOVIEMBRE
C2: FLUJO DE EFECTIVO
C4: Nombre/Empresa:
B9: Parte 1
B11: Ingresos | E11: Egresos | I11: Flujo Neto Mensual
B12: Ingresos del mes | C12: Monto | E12: Egresos del mes | F12: Monto | I12: =C35 - F35 -> 0
B13: Saldo inicial: | E13: Insumos
B14: Ventas de productos o servicios | E14: Sueldos
B15: Ingresos por comisiones | E15: Servicios (luz, internet, etc.)
B16: Ingresos por arrendamiento | E16: Papelería
B17: Ingresos por regalías | E17: Gasolina
B18: Intereses cobrados | E18: Suscripciones
B19: Ingresos por instrumentos financieros | E19: Honorarios profesionales
B20: Ingresos adicionales (freelance, etc.) | E20: Renta
B21: Otros ingresos | E21: Pago de intereses
E22: Otros gastos del negocio
E23: Impuestos y retenciones | I23: =IF(I12<=0,"¿De dónde proviene tu financiamiento?","¿En qué vas a invertir este dinero?") -> ¿De dónde proviene tu financiamiento?
E24: IMSS e INFONAVIT
E25: IVA
C34: Total Ingresos | F34: Total Egresos
C35: =SUM(C13:C33) -> 0 | F35: =SUM(F13:F33) -> 0
B39: Activos | E39: Pasivos | I39: Capital
B40: Activos del mes | C40: Valor | E40: Pasivos del mes | F40: Valor | I40: =+C63-F63+I52 -> 0
B41: Computadora | E41: Créditos bancarios empresariales
B42: Automóvil | E42: Créditos bancarios personales
B43: Escritorio | E43: Hipotecas
B44: Equipos, maquinaria o herramientas | E44: Tarjetas de crédito
B45: Marcas o patentes | E45: Deudas adquiridas con terceros
B46: Inversiones (CETES, acciones, etc.) | E46: Otras deudas
B47: Propiedades (casas, oficinas, bodegas, etc.)
B48: Otros activos
B49: Disminución de activos | E49: Disminución de pasivos
I51: Fondo de Ahoro
C62: Total Activos | F62: Total Pasivos
C63: =SUM(C41:C61)-C49-C49 -> 0 | F63: =SUM(F41:F61)-F49-F49 -> 0
B67: Parte 2
B68: Análisis financiero mensual
B70: Instrucciones: Analiza la información de la parte 1. Reflexiona sobre tu flujo de efectivo y las decisiones que estás tomando.
B72: 🧠 1. Conciencia del uso del dinero
B73: ¿En qué rubros se va la mayor parte de tu dinero?
B76: ¿Cuáles gastos fueron realmente necesarios y cuáles podrías evitar el próximo mes?
B79: ¿Tienes gastos que puedes reducir sin afectar tu operación o bienestar?
B83: 💡 2. Toma de decisiones
B84: ¿Tuviste excedente este mes? ¿Qué hiciste con él?
B86: Lo ahorré
B87: Lo invertí
B88: Lo reinvertí en mi negocio
B89: Lo usé en gastos personales
B90: No sé a dónde se fue
B91: Otro (Especifíca)
B97: Si tuviste un déficit, ¿cómo lo resolviste?
B98: Usé ahorros
B99: Pedí prestado
B100: Dejé de pagar algo
B101: Otro (Especifíca)
B107: 🎯 3. Planeación hacia el siguiente mes
B108: ¿Qué acción concreta vas a tomar para mejorar tu flujo de efectivo?
B109: Ejemplo: aumentar ingresos, reducir un gasto, controlar mejor el efectivo, etc.
B111: ¿Qué metas financieras tienes para el próximo mes?
B115: 📝 4. Espacio libre para anotaciones
B116: Escribe lo que aprendiste este mes o tus objetivos financieros

Sheet DICIEMBRE
C2: FLUJO DE EFECTIVO
C4: Nombre/Empresa:
B9: Parte 1
B11: Ingresos | E11: Egresos | I11: Flujo Neto Mensual
B12: Ingresos del mes | C12: Monto | E12: Egresos del mes | F12: Monto | I12: =C35 - F35 -> 0
B13: Saldo inicial: | E13: Insumos
B14: Ventas de productos o servicios | E14: Sueldos
B15: Ingresos por comisiones | E15: Servicios (luz, internet, etc.)
B16: Ingresos por arrendamiento | E16: Papelería
B17: Ingresos por regalías | E17: Gasolina
B18: Intereses cobrados | E18: Suscripciones
B19: Ingresos por instrumentos financieros | E19: Honorarios profesionales
B20: Ingresos adicionales (freelance, etc.) | E20: Renta
B21: Otros ingresos | E21: Pago de intereses
E22: Otros gastos del negocio
E23: Impuestos y retenciones | I23: =IF(I12<=0,"¿De dónde proviene tu financiamiento?","¿En qué vas a invertir este dinero?") -> ¿De dónde proviene tu financiamiento?
E24: IMSS e INFONAVIT
E25: IVA
C34: Total Ingresos | F34: Total Egresos
C35: =SUM(C13:C33) -> 0 | F35: =SUM(F13:F33) -> 0
B39: Activos | E39: Pasivos | I39: Capital
B40: Activos del mes | C40: Valor | E40: Pasivos del mes | F40: Valor | I40: =+C63-F63+I52 -> 0
B41: Computadora | E41: Créditos bancarios empresariales
B42: Automóvil | E42: Créditos bancarios personales
B43: Escritorio | E43: Hipotecas
B44: Equipos, maquinaria o herramientas | E44: Tarjetas de crédito
B45: Marcas o patentes | E45: Deudas adquiridas con terceros
B46: Inversiones (CETES, acciones, etc.) | E46: Otras deudas
B47: Propiedades (casas, oficinas, bodegas, etc.)
B48: Otros activos
B49: Disminución de activos | E49: Disminución de pasivos
I51: Fondo de Ahoro
C62: Total Activos | F62: Total Pasivos
C63: =SUM(C41:C61)-C49-C49 -> 0 | F63: =SUM(F41:F61)-F49-F49 -> 0
B67: Parte 2
B68: Análisis financiero mensual
B70: Instrucciones: Analiza la información de la parte 1. Reflexiona sobre tu flujo de efectivo y las decisiones que estás tomando.
B72: 🧠 1. Conciencia del uso del dinero
B73: ¿En qué rubros se va la mayor parte de tu dinero?
B76: ¿Cuáles gastos fueron realmente necesarios y cuáles podrías evitar el próximo mes?
B79: ¿Tienes gastos que puedes reducir sin afectar tu operación o bienestar?
B83: 💡 2. Toma de decisiones
B84: ¿Tuviste excedente este mes? ¿Qué hiciste con él?
B86: Lo ahorré
B87: Lo invertí
B88: Lo reinvertí en mi negocio
B89: Lo usé en gastos personales
B90: No sé a dónde se fue
B91: Otro (Especifíca)
B97: Si tuviste un déficit, ¿cómo lo resolviste?
B98: Usé ahorros
B99: Pedí prestado
B100: Dejé de pagar algo
B101: Otro (Especifíca)
B107: 🎯 3. Planeación hacia el siguiente mes
B108: ¿Qué acción concreta vas a tomar para mejorar tu flujo de efectivo?
B109: Ejemplo: aumentar ingresos, reducir un gasto, controlar mejor el efectivo, etc.
B111: ¿Qué metas financieras tienes para el próximo mes?
B115: 📝 4. Espacio libre para anotaciones
B116: Escribe lo que aprendiste este mes o tus objetivos financieros

Sheet AHORRO
B2: FONDO DE AHORRO
F4: Ingresa tu meta | H4: Objetivos o metas:
B5: Mes | C5: Ahorro | E5: Meta | F5: 1000000 | H5: Detalla tu objetivo (s) o meta (s) que quieres lograr con este ahorro.Por ejemplo, fondo de ahorro para emergencias, reserva para mantenimiento de activos, vacaciones (uso personal) etc.
B6: Enero | C6: =+ENERO!$I$52 -> 20000 | E6: Total ahorrado | F6: =SUM(C6:C17) -> 40000 | G6: =IFERROR(F6/F5,0) -> 0.04
B7: Febrero | C7: =+FEBRERO!I52 -> 0 | E7: Pendiente | F7: =IF(F5-F6<0,0,F5-F6) -> 960000 | G7: =+F7/F5 -> 0.96
B8: Marzo | C8: =+MARZO!I52 -> 0
B9: Abril | C9: =+ABRIL!I52 -> 20000
B10: Mayo | C10: =+MAYO!I52 -> 0
B11: Junio | C11: =+JUNIO!I52 -> 0
B12: Julio | C12: =+JULIO!I52 -> 0
B13: Agosto | C13: =+AGOSTO!I52 -> 0
B14: Septiembre | C14: =+SEPTIEMBRE!I52 -> 0
B15: Octubre | C15: =+OCTUBRE!I52 -> 0
B16: Noviembre | C16: =+NOVIEMBRE!I52 -> 0
B17: Diciembre | C17: =+DICIEMBRE!I52 -> 0
